bitfinex/quotes_ETHUSD_20251008
["timestamp","ask_amount","ask_price","bid_price","bid_amount"]
[1759907407286,2.24406444,4456.2,4455.2,0.47144568]
[1759907407455,2.45398678,4456.2,4455.2,0.47144568]
[1759907408041,2.24402085,4456.3,4455.6,0.449]
[1759907408486,2.24402085,4456.3,4455.6,0.47144366]
[1759907408650,2.24391976,4456.5,4455.6,0.47144366]
[1759907408860,2.24403333,4456.3,4455.6,0.47144366]
[1759907409270,2.24396373,4456.4,4455.6,0.47144366]
[1759907409672,1.92,4456.7,4455.6,0.449]
[1759907409872,2.24398906,4456.4,4455.6,0.449]
[1759907410767,2.24406071,4456.3,4455.6,0.449]
[1759907410955,2.54,4456.9,4456.1,0.459]
[1759907411145,2.24390846,4456.6,4456.1,0.459]
[1759907411550,2.24390846,4456.6,4456.2,0.449]
[1759907411746,2.24391778,4456.5,4456.2,0.449]
[1759907412358,2.24376182,4456.9,4456.3,0.449]
[1759907412558,10.0,4457.9,4456.3,0.71931477]
[1759907412871,2.24376503,4456.8,4456.4,0.449]
[1759907413077,2.24376503,4456.8,4456.5,0.449]
[1759907413262,2.24376503,4456.8,4456.1,0.01]
[1759907413467,2.24376503,4456.8,4456.2,0.67441585]
[1759907413681,0.6336,4458.2,4456.3,0.47144014]
[1759907413886,0.26555209,4459.9,4456.6,2.24386223]
[1759907413887,2.2434455,4457.5,4456.6,2.24386223]
[1759907414185,2.24342659,4457.5,4456.7,0.47143812]
[1759907414388,16.077,4458.5,4456.8,0.27153004]
[1759907414594,2.24315993,4458.0,4456.9,0.02243711]
[1759907414797,2.243352,4457.7,4457.0,0.449]
[1759907414997,4.16321363,4457.9,4457.1,0.02243611]
[1759907415171,2.24330079,4457.8,4457.1,0.02243611]
[1759907415497,1.92,4458.3,4457.2,0.449]
[1759907415679,2.24320526,4458.0,4457.3,0.0224351]
[1759907415877,2.24320526,4458.0,4457.4,0.449]
[1759907416184,2.24311396,4458.1,4457.4,0.449]
[1759907416398,2.24311396,4458.1,4457.5,0.02243409]
[1759907416900,2.24303769,4458.3,4457.6,0.449]
[1759907417074,0.114,4458.6,4457.7,0.02243309]
[1759907417280,2.24489845,4458.6,4458.0,0.112]
[1759907417488,0.002,4458.6,4458.0,0.112]
[1759907417800,0.002,4458.6,4458.1,0.449]
[1759907417986,0.002,4458.6,4458.2,0.02243057]
[1759907418191,0.002,4458.6,4458.5,0.112]
[1759907418566,0.002,4458.6,4458.5,0.561]
[1759907421501,2.2527158,4458.9,4458.5,0.561]
[1759907421502,0.01,4458.9,4458.5,0.561]
[1759907421702,0.01,4458.9,4458.8,0.112]
[1759907422093,0.01,4458.9,4458.8,0.5595]
[1759907423274,0.01,4458.9,4458.8,2.82468344]
[1759907423875,0.01,4458.9,4458.8,2.80225589]
[1759907424211,0.01,4458.9,4458.8,17.30225589]
[1759907425371,0.01,4458.9,4458.8,26.72943333]
[1759907425607,0.01,4458.9,4458.8,28.64943333]
[1759907428176,0.01,4458.9,4458.8,19.22225589]
[1759907428383,0.01,4458.9,4458.8,21.76325589]
[1759907429637,0.01,4458.9,4458.8,21.76225589]
[1759907430654,0.01,4458.9,4458.8,0.112]
[1759907430822,2.2527056,4458.9,4458.8,0.112]
[1759907431450,0.01,4458.9,4458.8,0.112]
[1759907433451,2.2527056,4458.9,4458.8,0.112]
[1759907433744,0.01,4458.9,4458.8,0.112]
[1759907437310,0.012,4458.9,4458.8,0.112]
[1759907441516,0.012,4458.9,4458.8,0.5545]
[1759907443439,0.012,4458.9,4458.8,0.112]
[1759907444028,0.012,4458.9,4458.8,0.5545]
[1759907444746,0.012,4458.9,4458.8,3.0925]
[1759907445460,0.012,4458.9,4458.8,0.112]
[1759907445949,0.23766686,4458.9,4458.8,0.112]
[1759907446655,0.012,4458.9,4458.8,0.112]
[1759907446855,0.012,4458.9,4458.8,0.5545]
[1759907447258,0.012,4458.9,4458.8,0.57692755]
[1759907447753,0.012,4458.9,4458.8,0.112]
[1759907448560,0.012,4458.9,4458.8,0.5545]
[1759907450062,0.012,4458.9,4458.8,0.112]
[1759907450957,2.24275589,4458.8,4458.7,2.541]
[1759907451253,2.71367586,4458.8,4458.7,2.541]
[1759907451856,2.92350256,4458.8,4458.7,2.541]
[1759907452161,2.71367586,4458.8,4458.7,2.541]
[1759907452361,2.71367586,4458.8,4458.6,0.112]
[1759907452562,2.2428565,4458.6,4458.5,0.001]
[1759907452734,35.00627181,4458.6,4458.5,0.001]
[1759907452926,35.4918333,4458.6,4458.5,0.001]
[1759907453130,37.74360375,4458.6,4458.5,0.001]
[1759907453325,2.87670805,4458.1,4457.1,0.113]
[1759907453548,37.54752336,4458.1,4457.1,0.001]
[1759907453750,38.03176419,4458.1,4457.1,0.001]
[1759907454167,37.54852336,4458.1,4457.1,0.001]
[1759907454368,39.80029381,4458.1,4457.1,0.001]
[1759907456162,40.28279229,4458.1,4457.1,0.001]
[1759907456473,40.37273197,4458.1,4457.1,0.001]
[1759907457082,40.37273197,4458.1,4457.7,0.001]
[1759907459090,7.19713197,4458.1,4457.7,0.001]
[1759907459288,4.37292336,4458.1,4457.7,0.001]
[1759907459659,34.37392336,4458.1,4457.7,0.001]
[1759907459996,4.37292336,4458.1,4457.7,0.001]
[1759907460165,2.45292336,4458.1,4457.7,0.001]
[1759907460762,0.20981531,4458.1,4457.7,0.001]
[1759907460962,2.24275589,4458.8,4458.0,0.4759]
[1759907461170,2.24299591,4458.4,4458.0,0.4759]
[1759907461393,0.20928064,4458.3,4458.0,0.4759]
[1759907461594,2.2428501,4458.7,4458.1,0.49733108]
[1759907461758,0.20926389,4458.6,4458.1,0.4749]
[1759907461963,2.24286571,4458.6,4458.2,0.4749]
[1759907462562,2.24286571,4458.6,4458.0,0.001]
[1759907462563,0.012,4458.9,4458.0,0.001]
[1759907463260,2.24283963,4458.7,4458.0,0.001]
[1759907463464,0.012,4458.9,4458.3,0.112]
[1759907463692,0.22126241,4458.9,4458.3,0.112]
[1759907464060,2.24295711,4458.4,4458.3,0.112]
[1759907464699,0.012,4458.9,4458.3,0.112]
[1759907464997,2.24295711,4458.4,4458.3,0.112]
[1759907465177,2.2429082,4458.5,4458.3,0.112]
[1759907467398,0.012,4458.9,4458.3,0.112]
[1759907468097,0.22131618,4458.9,4458.3,0.112]
[1759907468493,2.24295711,4458.4,4458.3,0.112]
[1759907468682,2.24295711,4458.4,4458.0,0.001]
[1759907468683,2.24310805,4458.1,4458.0,0.001]
[1759907470400,2.24310805,4458.1,4458.0,0.4759]
[1759907470602,2.24310805,4458.1,4458.0,0.001]
[1759907473696,2.2430681,4458.2,4458.0,0.4759]
[1759907473929,2.2430681,4458.2,4458.1,0.4749]
[1759907474487,2.2430681,4458.2,4458.0,0.001]
[1759907475636,2.24310805,4458.1,4458.0,0.001]
[1759907477903,0.112,4458.5,4458.0,0.001]
[1759907477904,2.2430503,4458.3,4458.0,0.001]
[1759907478085,2.24299643,4458.4,4458.0,0.001]
[1759907478291,2.24310805,4458.1,4458.0,0.001]
[1759907479120,2.24306562,4458.2,4458.0,0.001]
[1759907479733,2.24306562,4458.2,4458.0,0.4759]
[1759907480141,2.24310805,4458.1,4458.0,0.4759]
[1759907480340,2.24310805,4458.1,4458.0,0.001]
[1759907481030,0.112,4458.5,4458.0,0.001]
[1759907481241,2.24310805,4458.1,4458.0,0.001]
[1759907485184,2.45297028,4458.1,4458.0,0.001]
[1759907485949,0.20986223,4458.1,4458.0,0.001]
[1759907486131,2.45297028,4458.1,4458.0,0.001]
[1759907486534,0.20986223,4458.1,4458.0,0.001]
[1759907486724,0.20986223,4458.1,4458.0,0.471]
[1759907486926,2.45297028,4458.1,4458.0,0.471]
[1759907487327,2.45297028,4458.1,4458.0,0.001]
[1759907487857,0.20986223,4458.1,4458.0,0.001]
[1759907488540,0.20986223,4458.1,4458.0,0.471]
[1759907488741,2.541,4458.8,4458.0,0.84601226]
[1759907488950,2.541,4458.8,4458.0,0.583]
[1759907488951,2.24301705,4458.3,4458.0,0.583]
[1759907489274,0.21012565,4458.2,4458.1,0.47]
[1759907489444,0.21012565,4458.2,4458.1,0.02243108]
[1759907489855,0.21012565,4458.2,4458.0,0.113]
[1759907490053,1.92,4458.5,4458.0,0.113]
[1759907490054,0.21012565,4458.1,4458.0,0.113]
[1759907490744,2.24295726,4458.4,4458.0,0.583]
[1759907490745,0.21012565,4458.3,4458.0,0.583]
[1759907491071,0.21012565,4458.2,4458.1,0.47]
[1759907491363,0.21012565,4458.2,4458.0,0.113]
[1759907491529,0.002,4458.8,4458.1,3.14369051]
[1759907491866,0.002,4458.8,4458.6,0.112]
[1759907492232,0.002,4458.8,4458.7,0.47]
[1759907494728,2.24475589,4458.8,4458.6,0.55048044]
[1759907494933,2.24280619,4458.7,4458.6,0.112]
[1759907495757,0.21033789,4458.7,4458.6,0.112]
[1759907496065,2.24475869,4458.8,4458.6,0.112]
[1759907496261,0.21033825,4458.7,4458.6,0.112]
[1759907496569,2.24280619,4458.7,4458.6,0.112]
[1759907497270,2.24280619,4458.7,4458.1,0.112]
[1759907497271,2.2430383,4458.3,4458.1,0.112]
[1759907497469,0.21035808,4458.2,4458.1,0.112]
[1759907498432,0.21035808,4458.2,4458.1,0.60443108]
[1759907498638,0.002,4458.8,4458.1,2.84753913]
[1759907498857,0.21032373,4458.7,4458.5,0.112]
[1759907499066,0.21032373,4458.6,4458.5,0.112]
[1759907499270,0.21032373,4458.7,4458.5,0.112]
[1759907499440,0.21032373,4458.6,4458.5,0.112]
[1759907499834,2.45511058,4458.8,4458.5,0.582]
[1759907500192,0.21032373,4458.7,4458.6,0.47]
[1759907500366,0.21032373,4458.7,4458.5,0.112]
[1759907500567,0.21032373,4458.6,4458.5,0.112]
[1759907500756,0.002,4458.8,4458.5,0.13442906]
[1759907500958,0.002,4458.8,4458.6,0.47]
[1759907501170,0.002,4458.8,4458.7,0.02242806]
[1759907501550,0.002,4458.8,4458.7,0.49242806]
[1759907501752,0.002,4458.8,4458.7,0.47]
[1759907502435,0.002,4458.8,4458.7,2.73523425]
[1759907502637,0.002,4458.8,4458.7,3.14028688]
[1759907503667,0.002,4458.8,4458.7,0.89748069]
[1759907503875,0.002,4458.8,4458.7,3.11785882]
[1759907505160,0.002,4458.8,4458.7,17.61785882]
[1759907506359,0.002,4458.8,4458.7,17.508]
[1759907506557,0.002,4458.8,4458.0,0.45223319]
[1759907506757,0.002,4458.8,4458.1,2.538]
[1759907506987,0.002,4458.8,4458.1,17.038]
[1759907507191,3.14369051,4458.7,4458.0,0.45223319]
[1759907507387,2.24299563,4458.4,4458.2,2.538]
[1759907507894,2.24300742,4458.3,4458.2,2.538]
[1759907509477,2.57959321,4458.6,4458.2,2.538]
[1759907509684,0.33673671,4458.6,4458.2,2.538]
[1759907510259,2.57959672,4458.6,4458.2,2.538]
[1759907510465,2.24291637,4458.5,4458.2,2.538]
[1759907511276,2.24297005,4458.4,4458.2,2.538]
[1759907511786,2.24291175,4458.5,4458.2,2.538]
[1759907512693,2.31843983,4458.7,4458.3,0.4306]
[1759907512991,2.31843983,4458.7,4458.4,0.4306]
[1759907513384,2.24288939,4458.6,4458.2,2.538]
[1759907513583,2.24288939,4458.6,4458.3,0.4306]
[1759907513889,2.24288939,4458.6,4458.2,2.538]
[1759907514085,2.24288939,4458.6,4458.4,0.4306]
[1759907515191,0.0756,4458.7,4458.5,0.4306]
[1759907515595,0.0756,4458.7,4458.6,0.4306]
[1759907515795,0.0756,4458.7,4458.6,5.2114565]
[1759907516678,0.0756,4458.7,4458.6,5.3234565]
[1759907518687,0.0756,4458.7,4458.6,3.0806]
[1759907519281,0.0756,4458.7,4458.6,0.5426]
[1759907519507,0.0756,4458.7,4458.6,2.65]
[1759907519806,0.0756,4458.7,4458.6,17.15]
[1759907519996,0.0756,4458.7,4458.6,17.5806]
[1759907520196,0.0756,4458.7,4458.6,3.0806]
[1759907522178,0.0756,4458.7,4458.6,0.112]
[1759907522378,0.0756,4458.7,4458.1,0.001]
[1759907522607,2.2428565,4458.6,4458.3,0.846]
[1759907522912,2.24295711,4458.4,4458.2,0.112]
[1759907523112,0.23204565,4458.5,4458.2,2.65]
[1759907523297,2.31841236,4458.7,4458.3,0.4306]
[1759907523508,2.24295159,4458.5,4458.2,2.65]
[1759907523980,2.24300742,4458.3,4458.2,0.112]
[1759907524312,2.24300742,4458.3,4458.2,2.65]
[1759907525307,2.24300742,4458.3,4458.2,0.112]
[1759907525892,0.0756,4458.7,4458.2,0.112]
[1759907526093,2.24299522,4458.4,4458.2,0.112]
[1759907526409,2.24300742,4458.3,4458.1,0.001]
[1759907526616,2.45297629,4458.2,4458.1,0.001]
[1759907527416,2.24305773,4458.2,4458.1,0.001]
[1759907527580,0.28886,4458.7,4458.1,0.001]
[1759907527581,2.24290469,4458.6,4458.1,0.5436]
[1759907527785,0.20988638,4458.5,4458.2,0.4306]
[1759907527994,4.37283544,4458.5,4458.3,2.538]
[1759907528314,0.20988638,4458.4,4458.3,2.538]
[1759907529115,4.37284349,4458.4,4458.3,2.538]
[1759907529323,2.45284349,4458.4,4458.3,2.538]
[1759907530317,2.24295711,4458.4,4458.3,2.538]
[1759907530698,0.70375074,4458.5,4458.3,2.538]
[1759907531520,1.92,4458.4,4458.3,2.538]
[1759907531704,4.37282856,4458.4,4458.3,2.538]
[1759907531906,4.16295711,4458.4,4458.3,2.538]
[1759907532285,2.24305773,4458.2,4458.1,0.113]
[1759907532487,2.24305773,4458.2,4458.1,0.001]
[1759907532821,35.62553017,4458.2,4458.1,0.001]
[1759907532993,38.02919823,4458.2,4458.1,0.001]
[1759907533315,40.28096868,4458.2,4458.1,0.001]
[1759907533503,34.796859,4457.8,4457.7,1e-08]
[1759907533715,41.94504553,4457.8,4457.7,1e-08]
[1759907533907,41.94604553,4457.8,4457.7,1e-08]
[1759907535997,38.0293995,4457.8,4457.7,1e-08]
[1759907536199,40.28116995,4457.8,4457.7,1e-08]
[1759907540542,40.5479373,4457.8,4457.7,1e-08]
[1759907541515,40.28116995,4457.8,4457.7,1e-08]
[1759907543242,40.39316995,4457.8,4457.7,1e-08]
[1759907543442,50.09147246,4457.8,4457.7,1e-08]
[1759907543648,55.70747246,4457.8,4457.7,1e-08]
[1759907543821,56.31183893,4457.8,4457.7,1e-08]
[1759907544022,56.55155768,4457.8,4457.7,1e-08]
[1759907545264,55.70747246,4457.8,4457.7,1e-08]
[1759907546658,55.44070511,4457.8,4457.7,1e-08]
[1759907546834,45.89816995,4457.8,4457.7,1e-08]
[1759907548660,46.1649373,4457.8,4457.7,1e-08]
[1759907549301,46.76930377,4457.8,4457.7,1e-08]
[1759907549587,46.77130377,4457.8,4457.7,1e-08]
[1759907550286,46.76664452,4457.8,4457.7,1e-08]
[1759907550786,46.49987717,4457.8,4457.7,1e-08]
[1759907551188,43.35900201,4457.8,4457.7,1e-08]
[1759907551483,45.89800201,4457.8,4457.7,1e-08]
[1759907551689,46.50005903,4457.8,4457.7,1e-08]
[1759907552186,45.89800201,4457.8,4457.7,1e-08]
[1759907553371,43.96140413,4457.8,4457.7,1e-08]
[1759907553680,45.89800201,4457.8,4457.7,1e-08]
[1759907554787,5.18840201,4457.8,4457.7,1e-08]
[1759907554997,4.99413144,4457.8,4457.7,1e-08]
[1759907555305,7.5470344,4457.8,4457.7,1e-08]
[1759907555485,5.6270344,4457.8,4457.7,1e-08]
[1759907555798,6.9134344,4457.8,4457.7,1e-08]
[1759907556094,7.5470344,4457.8,4457.7,1e-08]
[1759907556297,5.6270344,4457.8,4457.7,1e-08]
[1759907556615,7.5470344,4457.8,4457.7,1e-08]
[1759907557116,7.54717586,4457.8,4457.7,1e-08]
[1759907559016,4.37457586,4457.8,4457.7,1e-08]
[1759907559228,4.48657586,4457.8,4457.7,1e-08]
[1759907562325,4.97027422,4457.8,4457.7,1e-08]
[1759907564603,6.57912014,4457.8,4457.7,1e-08]
[1759907564802,36.58012014,4457.8,4457.7,1e-08]
[1759907565501,36.58072336,4457.8,4457.7,1e-08]
[1759907567639,13.57772336,4457.8,4457.7,1e-08]
[1759907567883,15.39072336,4457.8,4457.7,1e-08]
[1759907567999,14.41547744,4457.8,4457.7,1e-08]
[1759907570345,14.06947744,4457.8,4457.7,1e-08]
[1759907570717,13.58577908,4457.8,4457.7,1e-08]
[1759907571537,13.07031155,4457.8,4457.7,1e-08]
[1759907571741,14.6017612,4457.8,4457.7,1e-08]
[1759907571943,13.3777612,4457.8,4457.7,1e-08]
[1759907573120,12.5917612,4457.8,4457.7,1e-08]
[1759907573452,12.10822873,4457.8,4457.7,1e-08]
[1759907575051,4.37513301,4457.8,4457.7,1e-08]
[1759907575377,6.91413301,4457.8,4457.7,1e-08]
[1759907576054,1.92,4457.6,4456.6,2.24382058]
[1759907576255,0.20987401,4457.5,4456.6,3.1448907]
[1759907576950,1.92,4457.3,4456.3,3.1448907]
[1759907577150,2.45344763,4457.2,4456.2,14.5]
[1759907577325,2.24357362,4457.2,4456.2,17.6448907]
[1759907577721,2.24369943,4457.0,4456.2,19.88895398]
[1759907578161,1.9926,4457.7,4456.3,0.4636]
[1759907578458,1.9926,4457.7,4456.2,17.6448907]
[1759907578459,2.24386029,4456.7,4456.2,14.5]
[1759907578749,2.24387876,4456.6,4456.2,14.5]
[1759907578952,2.24387876,4456.6,4456.3,0.4636]
[1759907579170,2.24382534,4456.7,4456.4,0.4636]
[1759907579377,2.24386456,4456.6,4456.5,0.4636]
[1759907580269,3.1448907,4456.8,4456.1,14.51]
[1759907580579,2.24406444,4456.2,4456.1,0.01]
[1759907581269,0.21008921,4456.2,4456.1,0.01]
[1759907581474,1.92,4456.5,4456.1,0.01]
[1759907581475,2.24406269,4456.3,4456.1,0.01]
[1759907581672,4.1639171,4456.5,4456.1,0.01]
[1759907581673,0.21008921,4456.2,4456.1,0.01]
[1759907581872,2.24406444,4456.2,4456.1,0.01]
[1759907582045,2.31625468,4457.1,4456.1,0.01]
[1759907582046,1.92,4457.0,4456.1,0.01]
[1759907582246,0.192,4457.2,4456.1,0.01]
[1759907582247,2.24386681,4456.6,4456.1,0.4736]
[1759907582439,2.24394372,4456.5,4456.1,0.4736]
[1759907582670,2.24406444,4456.2,4456.1,0.4736]
[1759907583851,2.24401753,4456.3,4456.1,0.4736]
[1759907584377,1.92,4456.5,4456.1,0.4736]
[1759907584678,2.24396373,4456.4,4456.1,0.4736]
[1759907584979,2.24406444,4456.2,4456.1,0.4736]
[1759907585976,2.24402127,4456.3,4456.1,0.4736]
[1759907586178,2.2439831,4456.4,4456.1,0.4736]
[1759907586472,2.2439831,4456.4,4456.2,0.4636]
[1759907586972,2.24401409,4456.3,4456.2,0.4636]
[1759907587184,2.539,4457.1,4456.2,3.6084907]
[1759907587347,4.2757116,4457.0,4456.2,0.5756]
[1759907587684,2.24387688,4456.6,4456.2,0.5756]
[1759907588047,2.24395725,4456.5,4456.2,0.112]
[1759907588453,2.24395725,4456.5,4456.3,0.4636]
[1759907589683,2.24387005,4456.6,4456.3,0.4636]
[1759907590583,2.24392199,4456.5,4456.3,0.4636]
[1759907591392,1.92,4456.9,4456.2,0.112]
[1759907591552,1.92,4456.9,4456.3,0.4636]
[1759907591747,4.16374106,4456.9,4456.3,0.4636]
[1759907591954,2.032,4457.0,4456.4,0.02243963]
[1759907592167,2.032,4457.3,4456.5,3.7204907]
[1759907592452,0.112,4457.3,4456.6,0.48603863]
[1759907592652,0.002,4457.8,4456.8,3.1448907]
[1759907592653,2.541,4457.8,4456.8,3.1448907]
[1759907592965,2.24343365,4457.5,4457.0,0.112]
[1759907593160,2.24346906,4457.4,4457.0,0.112]
[1759907593365,2.24346906,4457.4,4457.1,0.4636]
[1759907593683,2.24346906,4457.4,4457.2,0.4636]
[1759907593885,2.24346906,4457.4,4457.0,0.112]
[1759907594085,2.24346906,4457.4,4457.3,0.4636]
[1759907594297,2.45353845,4457.4,4457.3,0.4636]
[1759907594598,0.21006939,4457.4,4457.3,0.4636]
[1759907595163,0.002,4457.8,4457.3,0.4636]
[1759907595396,0.21203018,4457.8,4457.4,0.28531463]
[1759907595581,0.002,4457.8,4457.7,3.2568907]
[1759907595782,0.002,4457.8,4457.7,8.52523311]
[1759907595980,0.002,4457.8,4457.7,8.50280002]
[1759907596294,0.002,4458.3,4458.2,2.24305773]
[1759907596610,0.002,4458.3,4458.2,5.88702934]
[1759907596771,0.002,4458.3,4458.2,6.35062934]
[1759907597106,0.002,4458.3,4458.2,8.88962934]
[1759907598314,0.002,4458.3,4458.2,6.64657161]
[1759907598495,0.002,4458.3,4458.2,3.50168091]
[1759907600182,0.002,4458.3,4458.2,3.94105288]
[1759907600805,0.002,4458.3,4458.2,3.50168091]
[1759907601599,2.24310612,4458.2,4457.3,0.4385]
[1759907601800,0.002,4458.3,4457.3,0.4385]
[1759907602105,2.24339948,4457.6,4457.4,2.538]
[1759907602407,1.9966,4458.3,4456.5,0.4385]
[1759907602408,2.24353936,4457.3,4456.5,0.4385]
[1759907602717,2.24351239,4457.3,4456.5,2.68241159]
[1759907602885,2.24340998,4457.5,4456.7,3.1448907]
[1759907603406,10.0,4458.2,4457.3,3.1448907]
[1759907603407,1.92,4458.2,4457.3,3.1448907]
[1759907603583,1.92,4458.2,4457.3,0.4385]
[1759907603584,2.24326831,4457.8,4457.3,0.4385]
[1759907603783,2.24326831,4457.8,4457.2,2.538]
[1759907603784,2.24330972,4457.7,4457.4,0.4385]
[1759907603988,2.24330972,4457.7,4457.5,0.4385]
[1759907604383,2.24335965,4457.6,4457.5,0.4385]
[1759907604882,2.24331999,4457.7,4457.5,0.4385]
[1759907605202,2.24331999,4457.7,4457.2,2.538]
[1759907605428,2.24337077,4457.6,4457.3,0.4385]
[1759907605606,2.24337077,4457.6,4457.2,2.538]
[1759907605784,2.24337077,4457.6,4457.4,0.4385]
[1759907605986,2.24310805,4458.1,4457.4,0.4385]
[1759907606195,1.92,4458.0,4457.4,0.4385]
[1759907606504,2.24332401,4457.7,4457.4,0.4385]
[1759907606706,0.002,4458.2,4457.5,0.46093409]
[1759907607005,2.245067,4458.2,4457.5,0.4385]
[1759907607207,2.24321251,4457.9,4457.5,0.4385]
[1759907607399,2.24321251,4457.9,4457.6,0.4385]
[1759907607595,2.24311736,4458.1,4457.7,0.4385]
[1759907607902,2.24311736,4458.1,4457.8,0.4385]
[1759907608105,2.24311736,4458.1,4457.9,0.4385]
[1759907608276,0.002,4458.2,4458.0,0.4385]
[1759907608674,0.002,4458.2,4458.1,2.99893108]
[1759907611493,0.002,4458.2,4458.1,5.21960805]
[1759907611693,0.002,4458.2,4458.1,5.33160805]
[1759907612123,0.002,4458.2,4458.1,3.0885]
[1759907612290,0.002,4458.2,4458.1,3.11093108]
[1759907614825,0.002,4458.2,4458.1,3.0885]
[1759907615326,0.002,4458.2,4458.1,0.112]
[1759907615527,0.002,4458.2,4456.3,4.3]
[1759907615528,0.002,4458.2,4457.4,0.4385]
[1759907615831,2.24319734,4458.0,4457.6,0.112]
[1759907616126,2.24506321,4458.2,4457.6,0.112]
[1759907616127,2.24313403,4458.1,4457.6,0.112]
[1759907616330,2.24313403,4458.1,4457.7,0.4385]
[1759907616628,2.24313403,4458.1,4457.6,0.112]
[1759907616629,2.24506412,4458.2,4457.8,0.4385]
[1759907616830,2.24506412,4458.2,4457.9,0.4385]
[1759907617627,0.002,4458.2,4458.0,0.4385]
[1759907617822,0.002,4458.2,4458.1,0.4385]
[1759907620510,0.002,4458.2,4458.1,0.76978108]
[1759907620833,0.002,4458.2,4458.1,0.30885]
[1759907621027,0.002,4458.2,4458.1,0.4295]
[1759907621223,0.002,4458.2,4458.1,0.45193108]
[1759907621834,0.002,4458.2,4458.1,2.69503913]
[1759907622209,0.002,4458.2,4458.1,2.98993108]
[1759907623128,0.002,4458.2,4458.1,2.9675]
[1759907623329,0.002,4458.2,4458.1,0.4295]
[1759907623535,0.002,4458.2,4458.1,2.9675]
[1759907623915,0.002,4458.2,4458.0,14.5]
[1759907624111,0.002,4458.2,4458.1,2.538]
[1759907624547,0.002,4458.2,4458.1,2.9675]
[1759907628427,0.002,4458.2,4458.1,0.4295]
[1759907628659,0.002,4458.2,4458.1,2.538]
[1759907629160,0.002,4458.2,4458.1,2.9675]
[1759907629744,0.002,4458.2,4458.1,0.4295]
[1759907629944,0.002,4458.2,4458.1,2.9675]
[1759907632467,0.002,4458.2,4458.1,2.538]
[1759907632970,0.002,4458.2,4458.1,2.9983]
[1759907633188,0.002,4458.2,4457.9,14.612]
[1759907633189,0.002,4458.2,4457.9,0.112]
[1759907633478,2.24310805,4458.1,4458.0,2.538]
[1759907633678,2.92327921,4458.1,4458.0,2.538]
[1759907634257,2.453303,4458.1,4458.0,2.538]
[1759907634463,0.21019495,4458.1,4458.0,2.538]
[1759907634679,0.002,4458.2,4458.0,2.538]
[1759907634880,0.002,4458.2,4457.9,0.112]
[1759907635081,0.002,4458.2,4457.9,2.65]
[1759907635285,0.002,4458.2,4458.0,0.4603]
[1759907635589,0.002,4458.2,4458.1,2.538]
[1759907635747,0.002,4458.2,4458.1,2.9983]
[1759907638880,0.002,4458.2,4458.1,3.1103]
[1759907640597,0.002,4458.2,4458.1,2.65]
[1759907640958,0.002,4458.2,4458.1,3.1103]
[1759907642093,0.002,4458.2,4458.1,0.112]
[1759907642094,2.24505773,4458.2,4458.1,0.112]
[1759907642297,2.70120874,4458.2,4458.1,0.112]
[1759907642594,2.24320868,4457.9,4457.8,0.001]
[1759907642796,4.48543162,4457.9,4457.8,0.001]
[1759907643043,4.56003162,4457.9,4457.8,0.001]
[1759907643215,6.14161198,4457.9,4457.8,0.001]
[1759907645105,36.77521198,4457.9,4457.8,0.001]
[1759907645410,37.49223762,4457.9,4457.8,0.001]
[1759907645564,36.79395319,4457.4,4457.3,0.001]
[1759907645765,41.94696043,4457.4,4457.3,0.001]
[1759907645963,44.27333088,4457.4,4457.3,0.001]
[1759907646204,14.87943137,4457.4,4457.3,0.001]
[1759907646377,44.87943137,4457.4,4457.3,0.001]
[1759907646579,44.27333088,4457.4,4457.3,0.001]
[1759907647198,32.87726165,4457.0,4456.9,0.001]
[1759907647400,44.80514094,4457.0,4456.9,0.001]
[1759907647893,44.87974094,4457.0,4456.9,0.001]
[1759907649096,44.36348909,4457.0,4456.9,0.001]
[1759907649609,40.03259621,4457.0,4456.9,0.001]
[1759907650187,40.44659621,4457.0,4456.9,0.001]
[1759907650496,16.48999621,4457.0,4456.9,0.001]
[1759907650711,0.21022294,4457.0,4456.9,0.001]
[1759907650921,0.32222294,4457.6,4456.9,0.001]
[1759907651212,1.92,4457.4,4456.9,0.001]
[1759907651423,0.21022294,4457.3,4456.9,0.001]
[1759907651608,2.24357287,4457.2,4456.9,0.001]
[1759907651983,2.24362023,4457.1,4456.9,0.001]
[1759907653379,2.24366165,4457.0,4456.9,0.001]
[1759907654303,2.24363032,4457.1,4456.9,0.001]
[1759907655316,2.24366165,4457.0,4456.9,0.001]
[1759907655694,1.92,4457.3,4456.9,0.001]
[1759907655885,4.16354903,4457.3,4456.9,0.001]
[1759907656086,2.24358355,4457.2,4457.0,0.4603]
[1759907656399,2.24352888,4457.3,4457.0,0.4603]
[1759907656605,2.24357629,4457.2,4456.9,0.001]
[1759907656783,2.24357629,4457.2,4457.0,0.4603]
[1759907656984,2.24357629,4457.2,4456.9,0.001]
[1759907657185,2.24357629,4457.2,4457.1,0.4603]
[1759907657490,2.24365902,4457.1,4456.9,0.001]
[1759907658322,2.24365902,4457.1,4456.9,0.4613]
[1759907660117,2.24366165,4457.0,4456.9,0.4613]
[1759907661523,2.24352627,4457.3,4456.9,0.4507]
[1759907663124,2.24363042,4457.1,4457.0,0.4497]
[1759907664924,2.24366165,4457.0,4456.9,0.001]
[1759907666502,4.81558391,4457.0,4456.9,0.001]
[1759907667520,4.16366165,4457.0,4456.9,0.001]
[1759907669347,7.62016177,4457.0,4456.9,0.001]